Cogmind - Beta 14 @@@ ROGUE MODE // 2024.09.11 @ 21:47:25 Player: s0lid Result: Destroyed by Y-64 Sentinel with Wave Gun Performance ------------- Evolutions (6) 3000 Regions Visited (13) 2600 Robots Destroyed (84) 420 Value Destroyed (2406) 2406 Prototype IDs (7) 140 Alien Tech Used (0) 0 Bonus (1767) 1767 TOTAL SCORE: 10333 Bonus ------- High Alert Combat Kills 369 Follower Combat Kills 427 Met Warlord at Base 500 MAIN.C Attacked Warlord 500 Friendly Fire -29 Cogmind --------- Core Integrity 0/1150 Matter 280/300 Energy 37/100 System Corruption 13% Temperature Cool (10) Movement Flying (40) Location -4/Factory Parts ------- > --- POWER (3) -------- (None) > --- PROPULSION (5) --- Field Propulsion Array > --- UTILITY (8) ------ Machine Analyzer Enhanced Optical Array Advanced Signal Interpreter Improved Terrain Scanner Improved Target Analyzer Improved Transmission Jammer Improved Thermal Shield Hacking Suite > --- WEAPON (3) ------- (None) > --- INVENTORY (5) ---- High-capacity Storage Unit EM Disruption Field Vortex Lance (38) GAL Module Peak State ------------ > --- POWER ------------ Light Antimatter Reactor Reinforced Antimatter Reactor > --- PROPULSION ------- Flexi-carbon Leg Flexi-carbon Leg Flexi-carbon Leg Flexi-carbon Leg > --- UTILITY ---------- Large Storage Unit Compact Battery Makeshift Trap Scanner Improved Target Analyzer Improved Actuator Array Improved Power Shielding Remote Shield Minesniffer Drone Bay > --- WEAPON ----------- Vortex Shotgun Makeshift Axe Segregator > --- INVENTORY -------- Fusion Compressor Neutrino Core Flexi-carbon Leg Improved Cooling System High-capacity Matter Pod EM Disruption Field Authchip [R/Combat] Hacking Drone Bay Heavy Beamcaster Vortex Shotgun KE Penetrator Mining Laser Vortex Lance Vortex Lance GAL Module [Rating: 97] Favorites ----------- Power Improved Ion Engine Engine Improved Ion Engine Power Core Light Nuclear Core Reactor Light Antimatter Reactor Propulsion Flexi-carbon Leg Treads Improved Treads Leg Flexi-carbon Leg Wheel Compact Wheel Hover Unit Makeshift Hover Unit Flight Unit Field Propulsion Array Utility Compact Battery Device Improved Actuator Array Storage Compact Battery Processor Improved Target Analyzer Hackware Hacking Suite Protection Improved Power Shielding Weapon Makeshift Axe Energy Gun Vortex Shotgun Energy Cannon HERF Cannon Ballistic Gun Autogun Launcher EMP Blaster Special Weapon Mining Laser Slashing Weapon Makeshift Axe Piercing Weapon Vortex Lance Build | -11 -10 -10 -9 -9 -7 -6 -6 -5 -5 -5 -5 -4 -4 ------- Run | Yrd Mat Min Mat Min Zio Pro Fac Fac Upp Upp War Pro Fac Slots Evolved 12 | . . . 2 . . . 6 2 . . . . 2 Power 2 | . . . 1 . . . . . . . . . 1 Propulsion 3 | . . . . . . . 2 . . . . . 1 Utility 6 | . . . 1 . . . 3 2 . . . . . Weapon 1 | . . . . . . . 1 . . . . . . Parts Attached 213 | 8 9 1 22 . 5 8 17 11 26 8 19 11 68 Power 39 | 1 2 . 5 . . 2 . 3 7 1 4 3 11 Engine 15 | 1 2 . 5 . . 1 . . 4 . . 1 1 Core 21 | . . . . . . 1 . 3 3 1 2 2 9 Reactor 3 | . . . . . . . . . . . 2 . 1 Propulsion 55 | 3 3 . 4 . . 2 3 4 3 2 7 . 24 Treads 3 | . . . . . . . . . 1 2 . . . Leg 11 | . . . 1 . . . . 3 . . 6 . 1 Wheel 30 | 3 3 . 3 . . 2 2 1 2 . . . 14 Hover 9 | . . . . . . . 1 . . . 1 . 7 Flight 2 | . . . . . . . . . . . . . 2 Utility 68 | 2 . . 5 . 2 2 11 2 10 2 5 6 21 Device 45 | 1 . . 3 . 2 . 9 2 6 2 4 5 11 Storage 11 | 1 . . 2 . . . . . 3 . . 1 4 Processor 5 | . . . . . . . . . 1 . . . 4 Hackware 1 | . . . . . . . . . . . . . 1 Protection 6 | . . . . . . 2 2 . . . 1 . 1 Artifact . | . . . . . . . . . . . . . . Weapon 51 | 2 4 1 8 . 3 2 3 2 6 3 3 2 12 Energy Gun 16 | 1 . . 4 . 2 2 . 1 1 . 1 1 3 Energy Cannon 1 | . . . . . . . . . . . . . 1 Ballistic Gun 17 | 1 1 . 2 . . . 3 1 2 . . 1 6 Ballistic Cannon . | . . . . . . . . . . . . . . Launcher 6 | . 3 1 2 . . . . . . . . . . Special Weapon 2 | . . . . . 1 . . . . 1 . . . Impact Weapon . | . . . . . . . . . . . . . . Slashing Weapon 6 | . . . . . . . . . 3 2 1 . . Piercing Weapon 3 | . . . . . . . . . . . 1 . 2 Special Melee Weapon . | . . . . . . . . . . . . . . Unidentified Prototypes 7 | . . . 1 . 1 . 1 . . . 3 . 1 Parts Lost 90 | . . . 2 . . 1 . 13 12 3 2 6 51 Power 17 | . . . . . . . . 2 2 1 . 5 7 Propulsion 34 | . . . 2 . . . . 3 5 2 1 . 21 Utility 23 | . . . . . . . . 5 4 . . . 14 Weapon 16 | . . . . . . 1 . 3 1 . 1 1 9 Highest Loss Streak 21 | . . . 1 . . 1 . 8 6 3 2 3 21 To Critical Strikes 2 | . . . . . . . . . . . . . 2 Average Slot Usage (%) 90 | . 100 100 97 100 100 99 96 72 77 83 93 91 74 Engine 8 | . 14 14 22 22 22 12 6 3 6 6 4 . . Core 3 | . . . . . . 9 6 6 3 3 4 3 6 Treads 1 | . . . . . . . . . 2 5 4 . . Leg 5 | . . . . . . . . 4 7 . 2 23 4 Wheel 11 | . 28 28 19 22 22 22 20 8 4 5 4 . 9 Hover 1 | . . . . . . . 5 5 1 . 3 . 1 Device 18 | . 14 14 22 22 22 11 20 17 15 12 23 23 12 Storage 12 | . 14 14 11 11 11 11 6 5 16 23 16 10 7 Processor 3 | . . . . . . . . . 3 5 5 5 11 Protection 2 | . . . . . . 10 10 3 . . . 5 2 Energy Gun 5 | . 4 . 8 11 12 21 6 6 . . 3 3 . Ballistic Gun 3 | . 13 . 7 11 2 . 12 5 . . . 1 5 Launcher 1 | . 10 28 5 . . . . . . . . . . Slashing Weapon 5 | . . . . . . . . . 9 15 12 11 3 Peak Build Rating 97 | 7 9 10 18 18 25 29 51 58 66 60 97 97 89 Average Rating 48 | 5 8 10 15 18 18 25 44 49 53 56 74 85 69 On Entrance 35 | . 7 9 10 18 18 22 28 50 51 47 60 97 80 Naked Turns . | . . . . . . . . . . . . . . Heaviest Build 100 | 13 17 19 42 42 44 48 62 61 53 52 100 100 92 Greatest Support 80 | 26 32 32 32 26 26 26 36 51 51 16 80 80 68 Greatest Overweight (x) 5 | 1 . . 3 1 1 2 1 3 3 3 5 1 4 Average Overweight (x) 1 | . . . . 1 1 1 1 1 . 2 3 . . Largest Inventory Capacity 20 | 8 8 8 15 15 15 15 15 15 15 15 15 15 20 Average Capacity 13 | 7 8 8 9 15 15 15 15 15 15 15 15 15 14 Most Carried 18 | 8 8 8 15 15 15 15 15 15 15 15 15 15 18 Average Carried 13 | 4 7 8 9 15 14 14 13 12 14 14 14 14 11 Final Capacity 15 | 8 8 8 15 15 15 15 15 15 15 15 15 15 5 Final Carried 15 | 7 8 8 15 15 15 14 15 11 15 15 15 14 4 Class Distribution -------------------- 30% | Scavenger-Mutant 27% | Mutant 16% | Scavenger-Gladiator 8% | Derelict-Gladiator 7% | Commander-Gladiator 5% | Derelict-Mutant 4% | Scavenger-Tank Dominant Class ---------------- Mutant | -10/Materials Mutant | -10/Mines Mutant | -9/Materials Mutant | -9/Mines Scavenger-Mutant | -7/Zion Derelict-Mutant | -6/Proximity Caves Scavenger-Tank | -6/Factory Scavenger-Tank | -5/Factory Scavenger-Gladiator | -5/Upper Caves Scavenger-Gladiator | -5/Upper Caves Commander-Gladiator | -5/Warlord Scavenger-Mutant | -4/Proximity Caves Scavenger-Mutant | -4/Factory Resources | -11 -10 -10 -9 -9 -7 -6 -6 -5 -5 -5 -5 -4 -4 ----------- Run | Yrd Mat Min Mat Min Zio Pro Fac Fac Upp Upp War Pro Fac Matter Collected 3566 | 186 374 39 548 30 26 115 262 . 809 70 126 169 812 Remotely 77 | . . . . . . . . . 77 . . . . Salvage Created 3051 | 73 433 . 851 . . 139 114 171 169 136 . 42 923 Parts 182 | 12 31 . 55 . . 7 1 10 8 6 . . 52 Haulers Intercepted 5 | . 2 . 3 . . . . . . . . . . Recyclers Shooed . | . . . . . . . . . . . . . . Parts Field Recycled . | . . . . . . . . . . . . . . Retrieved Matter . | . . . . . . . . . . . . . . Parts Self-Destructed 31 | . . . . . . 17 . . 9 5 . . . Prevented 4 | . . . . . . 2 . . 2 . . . . Kills | -11 -10 -10 -9 -9 -7 -6 -6 -5 -5 -5 -5 -4 -4 ------- Run | Yrd Mat Min Mat Min Zio Pro Fac Fac Upp Upp War Pro Fac Combat Hostiles Destroyed 62 | . 8 . 14 . . 4 . 5 5 3 . 2 21 Melee 14 | . . . . . . . . . 5 3 . 2 4 Guns 28 | . 3 . 4 . . 3 . 5 . . . . 13 AOE 17 | . 5 . 8 . . 1 . . . . . . 3 Classes Destroyed 13 | 1 5 . 4 . . . . . . . . 1 2 Worker 1 | . . . 1 . . . . . . . . . . Builder 3 | . 1 . 1 . . . . . . . . . 1 Tunneler 4 | 4 . . . . . . . . . . . . . Hauler 5 | . 2 . 3 . . . . . . . . . . Recycler 4 | . . . 1 . . . 1 . . . . . 2 Operator 2 | . . . 2 . . . . . . . . . . Drone 1 | . . . . . . . . . . . . 1 . Watcher 3 | . 2 . 1 . . . . . . . . . . Swarmer 34 | . 3 . 4 . . 3 . 4 4 2 . 1 13 Grunt 16 | . 5 . 7 . . 1 . . . . . . 3 Sentry 6 | . . . 3 . . . . 1 1 1 . . . Hunter 1 | . . . . . . . . . . . . . 1 Programmer 4 | . . . . . . . . . . . . . 4 Best Kill Streak 11 | 4 6 . 6 . . 3 1 4 4 2 . 1 11 Combat Bots Only 6 | . 5 . 6 . . 3 . 4 4 2 . 1 6 Max Kills in Single Turn 4 | 1 2 . 4 . . 1 1 1 1 1 . 1 2 Gunslinging . | . . . . . . . . . . . . . . Exploded 4 | . 2 . 4 . . 1 . . . . . . 2 Melee 1 | . . . . . . . . . 1 1 . 1 1 Uniques/NPCs Destroyed . | . . . . . . . . . . . . . . Combat | -11 -10 -10 -9 -9 -7 -6 -6 -5 -5 -5 -5 -4 -4 -------- Run | Yrd Mat Min Mat Min Zio Pro Fac Fac Upp Upp War Pro Fac Hostile Shots Fired 888 | . 30 . 66 1 . 30 5 147 104 27 4 25 449 Missed 257 | . 10 . 24 . . 8 1 37 40 5 1 7 124 Damage Taken 10388 | . 213 . 572 9 . 399 62 1531 1006 428 354 282 5532 Core 1922 | . 37 . 111 . . 79 . 147 166 128 42 62 1150 Absorbed by Shields 967 | . . . . . . . . . 92 . 306 132 437 Redirected to Shielding 101 | . . . . . . 13 19 . . . . . 69 Ignored by Resistances 676 | . . . . . . . . 429 . . . . 247 Regen/Repaired (Parts) 85 | . . . . . 3 . . . . . 82 . . Core Remaining (%) 76 | 100 . 85 . . . 52 100 . . . . 45 . Volleys Fired 211 | 8 41 . 66 . 12 9 3 20 . . . 2 50 Largest 3 | 2 2 . 2 . 2 2 3 3 . . . 1 3 Hottest 183 | 60 73 . 89 . 156 120 121 183 . . . 33 176 Shots Fired 349 | 12 52 . 110 . 16 16 9 55 . . . 4 75 Gun 308 | 12 40 . 87 . 13 16 9 55 . . . 4 72 Cannon 3 | . . . . . . . . . . . . . 3 Launcher 35 | . 12 . 23 . . . . . . . . . . Special 3 | . . . . . 3 . . . . . . . . Kinetic 161 | 8 26 . 40 . 4 . 6 30 . . . 2 45 Thermal 87 | . . . 47 . 12 . 3 25 . . . . . Explosive . | . . . . . . . . . . . . . . Electromagnetic 85 | 4 26 . 23 . . 16 . . . . . . 16 Entropic 16 | . . . . . . . . . . . . 2 14 Robot Hit Streak 12 | 4 5 . 12 . . 3 7 11 . . . . 11 Robot Miss Streak 5 | 1 2 . 4 . . 3 1 3 . . . . 5 Penetration Max . | . . . . . . . . . . . . . . Secondary Targets 6 | . . . . . . . . 5 . . . . 1 Max Gunslinging Chain 1 | . . . . . . . . 1 . . . . 1 Shots Hit Robots 247 | 9 26 . 59 . . 12 6 41 13 6 . 9 66 Core Hits 128 | 7 18 . 30 . . 8 3 17 6 4 . 3 32 Critical Kills 1 | . . . . . . . . . . . . . 1 Critical Parts Destroyed 2 | . . . . . . . . . . . . . 2 Critical Strikes 11 | . . . 3 . . . 1 1 . 1 . . 5 Burn 5 | . . . 3 . . . 1 1 . . . . . Destroy 1 | . . . . . . . . . . . . . 1 Sever 1 | . . . . . . . . . . 1 . . . Detonate 2 | . . . . . . . . . . . . . 2 Sunder 2 | . . . . . . . . . . . . . 2 Melee Attacks 82 | . . . . . . . . . 23 13 . 21 25 Thermal 21 | . . . . . . . . . . . . 15 6 Impact . | . . . . . . . . . . . . . . Slashing 43 | . . . . . . . . . 23 13 . 6 1 Piercing . | . . . . . . . . . . . . . . Entropic 18 | . . . . . . . . . . . . . 18 Sneak Attacks 2 | . . . . . . . . . . . . . 2 Combat Hostiles . | . . . . . . . . . . . . . . Follow-up Attacks 13 | . . . . . . . . . 4 2 . 6 1 Damage Inflicted 7270 | 173 690 . 1327 . . 288 123 842 473 195 . 144 3015 Guns 3663 | 112 338 . 703 . . 182 123 821 . . . . 1384 Cannons 83 | . . . . . . . . . . . . . 83 Explosions 1409 | 61 352 . 624 . . 106 . . . . . . 266 Melee 2085 | . . . . . . . . . 467 195 . 144 1279 Ramming 30 | . . . . . . . . 21 6 . . . 3 Kinetic 1616 | 58 235 . 269 . . . 59 464 . . . . 531 Thermal 1449 | 61 . . 595 . . 106 64 357 . . . . 266 Explosive . | . . . . . . . . . . . . . . Electromagnetic 1377 | 54 455 . 463 . . 182 . . . . . . 223 Impact . | . . . . . . . . . . . . . . Slashing 837 | . . . . . . . . . 467 195 . 144 31 Piercing . | . . . . . . . . . . . . . . Entropic 1961 | . . . . . . . . . . . . . 1961 Highest Corruption 13 | . . . . . . . . . . . 6 6 13 Average Corruption 5 | . . . . . . . . . . . 6 3 7 Corruption Purged 5 | . . . . . . . . . . . . 5 . Corruption Blocked . | . . . . . . . . . . . . . . Effects 47 | . . . . . . . . . . . 5 22 20 Message Errors 10 | . . . . . . . . . . . 1 5 4 Matter Fused 10 | . . . . . . . . . . . 3 3 4 Heat Flow Errors 2 | . . . . . . . . . . . . . 2 Energy Discharges 5 | . . . . . . . . . . . 1 2 2 Parts Rejected 2 | . . . . . . . . . . . . 2 . Parts Fused 1 | . . . . . . . . . . . . 1 . Data Loss (minor) 9 | . . . . . . . . . . . . 6 3 Data Loss (major) 1 | . . . . . . . . . . . . 1 . Misfires 3 | . . . . . . . . . . . . 2 1 Alerts 1 | . . . . . . . . . . . . . 1 Misdirections 1 | . . . . . . . . . . . . . 1 Weapon Failures 2 | . . . . . . . . . . . . . 2 Overload Shots . | . . . . . . . . . . . . . . Overflow Damage 208 | 5 . . 1 . . . . . . . . 4 198 Projectiles . | . . . . . . . . . . . . . . Explosions 6 | 5 . . 1 . . . . . . . . . . Melee 202 | . . . . . . . . . . . . 4 198 Knockbacks . | . . . . . . . . . . . . . . Impact . | . . . . . . . . . . . . . . Kinetic . | . . . . . . . . . . . . . . Secondary . | . . . . . . . . . . . . . . Self-Inflicted Damage 130 | . 14 . 39 . . 18 . . . . . . 59 Shots 7 | . 1 . 4 . . 1 . . . . . . 1 Rammed 1 | . . . . . . . . . . . . . 1 Targets Rammed 7 | . . . . . . . . 5 1 . . . 1 Kicked 6 | . . . . . . . . 5 1 . . . . Crushed . | . . . . . . . . . . . . . . Highest Temperature 322 | . 30 . 221 . 198 322 96 78 . . . . 255 Average Temperature 70 | . 14 . 66 . 96 143 46 26 . . . . 64 Received Heat Transfer 1516 | . 72 . 192 . . 117 . 549 108 54 . 18 406 Effects 10 | . . . 3 . . 4 . . . . . . 3 Energy Bleed 1 | . . . . . . 1 . . . . . . . Interference 9 | . . . 3 . . 3 . . . . . . 3 Siege Activations . | . . . . . . . . . . . . . . Robots Corrupted 2 | . . . 1 . . . . . . . . . 1 Combat Hostiles 2 | . . . 1 . . . . . . . . . 1 Parts Fried 3 | . 1 . 1 . . . . . . . . . 1 Impact Corruptions . | . . . . . . . . . . . . . . Robots Melted 1 | . . . 1 . . . . . . . . . . Combat Hostiles 1 | . . . 1 . . . . . . . . . . Parts Melted 6 | . . . 4 . . . 1 1 . . . . . Heat Transferred 2683 | 150 . . 1345 . . 100 185 703 . . . . 200 Parts Sabotaged . | . . . . . . . . . . . . . . Parts Stolen . | . . . . . . . . . . . . . . Parts Stripped . | . . . . . . . . . . . . . . Power Chain Reactions 8 | 1 . . 6 . . 1 . . . . . . . Alert | -11 -10 -10 -9 -9 -7 -6 -6 -5 -5 -5 -5 -4 -4 ------- Run | Yrd Mat Min Mat Min Zio Pro Fac Fac Upp Upp War Pro Fac Peak Influence 970 | 20 371 66 497 199 . . 59 73 . . . . 970 Initial 900 | . 13 66 25 118 . . . 28 . . . . 900 Average 343 | 7 191 66 326 183 . . 34 23 . . . . 694 Maximum Alert Level 3 | . 1 . 2 . . . . . . . . . 3 Low Security (%) 43 | 100 74 100 10 100 . . 100 100 . . . . . Level 1 18 | . 25 . 51 . . . . . . . . . 6 Level 2 26 | . . . 37 . . . . . . . . . 54 Level 3 12 | . . . . . . . . . . . . . 39 Level 4 . | . . . . . . . . . . . . . . Level 5 . | . . . . . . . . . . . . . . High Security . | . . . . . . . . . . . . . . Max Security . | . . . . . . . . . . . . . . Squads Dispatched 10 | . 2 . 1 . . . . . . . . . 7 Investigation 2 | . . . 1 . . . . . . . . . 1 Extermination 2 | . . . . . . . . . . . . . 2 Reinforcement 5 | . 2 . . . . . . . . . . . 3 Assault 1 | . . . . . . . . . . . . . 1 Garrison . | . . . . . . . . . . . . . . Intercept . | . . . . . . . . . . . . . . Searches Triggered 4 | . . . . . . . . . . . . . 4 Construction Impeded . | . . . . . . . . . . . . . . Haulers Reinforced . | . . . . . . . . . . . . . . Active Scanning Responses . | . . . . . . . . . . . . . . Cargo Convoy Interrupts . | . . . . . . . . . . . . . . Stealth | -11 -10 -10 -9 -9 -7 -6 -6 -5 -5 -5 -5 -4 -4 --------- Run | Yrd Mat Min Mat Min Zio Pro Fac Fac Upp Upp War Pro Fac Distress Signals 5 | . 1 . 1 . . . . . . . 1 . 2 Communications Jammed 19 | . . . . . . . . . . . . . 19 Distress Signals 19 | . . . . . . . . . . . . . 19 Times Spotted 180 | . 14 . 22 3 . 9 3 17 18 3 13 11 67 Peak Tracking Total 12 | . 5 . 6 3 . 4 3 7 9 3 12 2 11 Tactical Retreats 28 | . 3 . 1 . . . . 2 3 . 1 3 15 Traps | -11 -10 -10 -9 -9 -7 -6 -6 -5 -5 -5 -5 -4 -4 ------- Run | Yrd Mat Min Mat Min Zio Pro Fac Fac Upp Upp War Pro Fac Traps Triggered 4 | . . . . . . . 1 . . . . . 3 Indirectly . | . . . . . . . . . . . . . . Trap Hack Attempts . | . . . . . . . . . . . . . . Triggered . | . . . . . . . . . . . . . . Disarmed . | . . . . . . . . . . . . . . Reprogrammed . | . . . . . . . . . . . . . . Reused . | . . . . . . . . . . . . . . Traps Extracted . | . . . . . . . . . . . . . . Installed 2 | . . . . . . . . . . . . 1 1 Triggered 18 | . . . . . . . . . 3 . 15 . . Most Traps Carried 1 | . . . . . . . . . . . . 1 1 Machines | -11 -10 -10 -9 -9 -7 -6 -6 -5 -5 -5 -5 -4 -4 ---------- Run | Yrd Mat Min Mat Min Zio Pro Fac Fac Upp Upp War Pro Fac Machines Disabled 8 | . 4 . 4 . . . . . . . . . . Max in Single Turn 1 | . 1 . 1 . . . . . . . . . . Garrison Access 1 | . . . . . . . . . . . . . 1 Machines Repaired . | . . . . . . . . . . . . . . Machines Dismantled . | . . . . . . . . . . . . . . Machines Sabotaged . | . . . . . . . . . . . . . . Overloaded Fab Kills . | . . . . . . . . . . . . . . Hacking | -11 -10 -10 -9 -9 -7 -6 -6 -5 -5 -5 -5 -4 -4 --------- Run | Yrd Mat Min Mat Min Zio Pro Fac Fac Upp Upp War Pro Fac Machines Accessed 19 | . 1 . 3 . . . 2 1 1 . 8 . 3 Terminals 8 | . 1 . 3 . . . 2 1 . . . . 1 Fabricators 1 | . . . . . . . . . . . . . 1 Repair Stations . | . . . . . . . . . . . . . . Recycling Units 1 | . . . . . . . . . . . . . 1 Scanalyzers . | . . . . . . . . . . . . . . Garrison Access . | . . . . . . . . . . . . . . Total Hacks 45 | . 4 . 8 . . . 3 7 1 . 15 . 7 Successful 25 | . 2 . 1 . . . . 5 1 . 15 . 1 Failed 20 | . 2 . 7 . . . 3 2 . . . . 6 Catastrophic 4 | . 1 . 1 . . . 1 . . . . . 1 Database Lockouts . | . . . . . . . . . . . . . . Manual 12 | . 2 . 6 . . . 3 1 . . . . . Terminals 23 | . 4 . 8 . . . 3 7 . . . . 1 Fabricators 4 | . . . . . . . . . . . . . 4 Repair Stations . | . . . . . . . . . . . . . . Recycling Units 2 | . . . . . . . . . . . . . 2 Scanalyzers . | . . . . . . . . . . . . . . Garrison Access . | . . . . . . . . . . . . . . Terminal Hacks 23 | . 1 . 1 . . . . 5 1 . 15 . . Record 14 | . . . . . . . . . . . 14 . . Open Door 2 | . . . . . . . . . 1 . 1 . . Emergency Access Points 1 | . . . 1 . . . . . . . . . . Unreport Threat 1 | . . . . . . . . 1 . . . . . Locate Traps 2 | . 1 . . . . . . 1 . . . . . Surveillance Status 1 | . . . . . . . . 1 . . . . . Patrol Status 1 | . . . . . . . . 1 . . . . . Hauler Manifests 1 | . . . . . . . . 1 . . . . . Fabricator Hacks 1 | . . . . . . . . . . . . . 1 Load Schematic 1 | . . . . . . . . . . . . . 1 Repair Station Hacks . | . . . . . . . . . . . . . . Recycling Unit Hacks . | . . . . . . . . . . . . . . Scanalyzer . | . . . . . . . . . . . . . . Garrison Access Hacks . | . . . . . . . . . . . . . . Unauthorized Hacks 1 | . 1 . . . . . . . . . . . . Terminals 1 | . 1 . . . . . . . . . . . . Botnet 1 | . 1 . . . . . . . . . . . . Fabricators . | . . . . . . . . . . . . . . Repair Stations . | . . . . . . . . . . . . . . Recycling Units . | . . . . . . . . . . . . . . Scanalyzers . | . . . . . . . . . . . . . . Garrison Access . | . . . . . . . . . . . . . . Data Cores Recovered 1 | . . . 1 . . . . . . . . . . Used . | . . . . . . . . . . . . . . Hacking Detections 10 | . 1 . 3 . . . 2 1 . . . . 3 Full Trace Events 2 | . . . 1 . . . . . . . . . 1 Feedback Events . | . . . . . . . . . . . . . . Feedback Blocked . | . . . . . . . . . . . . . . Robot Schematics Acquired 4 | . . . . . 4 . . . . . . . . Robots Built . | . . . . . . . . . . . . . . Authchips . | . . . . . . . . . . . . . . Time . | . . . . . . . . . . . . . . Total Robot Build Rating . | . . . . . . . . . . . . . . Part Schematics Acquired 12 | . . . . . 12 . . . . . . . . Parts Built . | . . . . . . . . . . . . . . Authchips . | . . . . . . . . . . . . . . Time . | . . . . . . . . . . . . . . Total Part Build Rating . | . . . . . . . . . . . . . . Parts Repaired . | . . . . . . . . . . . . . . Time . | . . . . . . . . . . . . . . Parts Recycled . | . . . . . . . . . . . . . . Recycled Matter . | . . . . . . . . . . . . . . Retrieved Matter . | . . . . . . . . . . . . . . Retrieved Components . | . . . . . . . . . . . . . . Parts Scanalyzed . | . . . . . . . . . . . . . . Part Schematics Acquired . | . . . . . . . . . . . . . . Parts Damaged . | . . . . . . . . . . . . . . Bothacking | -11 -10 -10 -9 -9 -7 -6 -6 -5 -5 -5 -5 -4 -4 ------------ Run | Yrd Mat Min Mat Min Zio Pro Fac Fac Upp Upp War Pro Fac Used RIF Installer . | . . . . . . . . . . . . . . Robots Hacked . | . . . . . . . . . . . . . . Non-combat . | . . . . . . . . . . . . . . Combat . | . . . . . . . . . . . . . . Robot Hacks Applied . | . . . . . . . . . . . . . . Relay Couplers Released 3 | . . . . . . . . . . . . . 3 Machine Destruction 3 | . . . . . . . . . . . . . 3 Fabnet Peak Effective % . | . . . . . . . . . . . . . . Robots Rewired 8 | . . . . . . 3 . . . . 5 . . Allies Hacked . | . . . . . . . . . . . . . . Hacks Repelled . | . . . . . . . . . . . . . . Allies | -11 -10 -10 -9 -9 -7 -6 -6 -5 -5 -5 -5 -4 -4 -------- Run | Yrd Mat Min Mat Min Zio Pro Fac Fac Upp Upp War Pro Fac Total Allies 17 | . . . . 5 4 3 . . . . 5 . . Largest Group 7 | . . . . 5 7 7 4 1 . . 5 1 . Highest-Rated Group 304 | . . . . 83 143 143 111 29 . . 304 65 . Highest-Rated Ally 68 | . . . . 31 31 30 30 29 . . 68 65 . Total Orders 15 | . . . . . . 1 . . . . 2 10 2 FOLLOW 1 | . . . . . . 1 . . . . . . . EXPLORE 11 | . . . . . . . . . . . 2 7 2 RETURN 3 | . . . . . . . . . . . . 3 . Ally Attacks 117 | . . . . 11 . 85 12 . . . 9 . . Total Damage 1739 | . . . . 67 . 1299 101 . . . 272 . . Kills 20 | . . . . 3 . 13 3 . . . 1 . . Allies Corrupted 7 | . . . . . . 1 . . . . 2 . 4 Allies Melted 3 | . . . . . . 1 . . . . 2 . . Intel | -11 -10 -10 -9 -9 -7 -6 -6 -5 -5 -5 -5 -4 -4 ------- Run | Yrd Mat Min Mat Min Zio Pro Fac Fac Upp Upp War Pro Fac Robot Analysis Total . | . . . . . . . . . . . . . . Derelict Logs Recovered 7 | . . . . 1 1 2 . . . 1 . 2 . Drone Launches 79 | . . . . . . . . . . . 50 10 19 Drone Recoveries 31 | . . . . . . . . . . . 10 10 11 Exploration | -11 -10 -10 -9 -9 -7 -6 -6 -5 -5 -5 -5 -4 -4 ------------- Run | Yrd Mat Min Mat Min Zio Pro Fac Fac Upp Upp War Pro Fac Turns Passed 9721 | 117 504 188 817 164 937 920 303 234 1202 581 1395 1288 1071 Spaces Moved 6785 | 87 447 174 520 124 799 717 248 121 892 393 787 786 690 Core 15 | 11 . . . . . . . . . . . . 4 Treads 13 | . . . . . . . . . 13 . . . . Legs 1435 | . . . . . . . . 40 379 . 77 786 153 Wheels 5101 | 76 447 174 520 124 799 717 248 81 500 393 710 . 312 Hover 43 | . . . . . . . . . . . . . 43 Flight 178 | . . . . . . . . . . . . . 178 Fastest Speed 40 | 50 80 100 100 105 105 105 95 101 105 130 120 120 40 Average Speed 116 | 86 84 100 106 105 105 109 98 116 122 139 162 120 103 Slowest Speed 260 | 100 100 100 125 105 105 110 101 190 240 145 260 190 260 Overloaded Moves . | . . . . . . . . . . . . . . Propulsion Burnouts . | . . . . . . . . . . . . . . Robots Hopped 1 | . . . . . . . . . . . . . 1 Cave-ins Triggered 1 | . . . . . . . . . . . 1 . . Exploration Rate (%) 47 | 3 47 32 52 33 83 82 7 5 73 54 84 95 21 Regions Visited 13 Branch Regions 8 Pre-discovered Areas 3 | . . . . . 1 1 . . . . . 1 . Known Exits Taken . | . . . . . . . . . . . . . . Unknown Exits Taken 13 | 1 1 1 1 1 1 1 1 1 1 1 1 1 . Scrap Searched 16 | . . 1 . . 2 3 . . 3 2 . 5 . Spaces Dug 1 | . . . . . . . . . . . . 1 . Terrain Destroyed 96 | 2 . . 63 . . . . 2 . . . 5 24 Melee . | . . . . . . . . . . . . . . Projectile 15 | . . . . . . . . 2 . . . 5 8 AOE 80 | 2 . . 63 . . . . . . . . . 15 Terrain Rammed . | . . . . . . . . . . . . . . Walls Destroyed . | . . . . . . . . . . . . . . Machines Disabled . | . . . . . . . . . . . . . . Actions | -11 -10 -10 -9 -9 -7 -6 -6 -5 -5 -5 -5 -4 -4 --------- Run | Yrd Mat Min Mat Min Zio Pro Fac Fac Upp Upp War Pro Fac Total 8184 | 115 526 187 680 157 879 838 298 169 982 413 910 1095 935 Wait 640 | . 10 13 40 34 49 75 17 12 25 . 35 273 57 Move 6769 | 86 446 173 519 123 798 716 247 120 891 392 785 785 688 Hop 1 | . . . . . . . . . . . . . 1 Pick Up 90 | 10 8 . 15 . 7 4 6 . 11 2 7 4 16 Fast Attach 90 | 6 . . 4 . 1 1 8 2 12 6 10 5 35 Attach 51 | 1 . . 5 . . 1 4 7 8 1 2 3 19 Detach 13 | . . . 2 . . 1 1 1 4 . 2 . 2 Swap 72 | 1 9 1 13 . 4 6 5 2 6 1 7 3 14 Drop 95 | 3 12 . 16 . 8 8 7 . 6 3 18 4 10 Fire 211 | 8 41 . 66 . 12 9 3 20 . . . 2 50 Melee 65 | . . . . . . . . . 18 8 . 15 24 Ram 1 | . . . . . . . . . . . . . 1 Kick 6 | . . . . . . . . 5 1 . . . . Crush . | . . . . . . . . . . . . . . Escape Stasis 16 | . . . . . . . . . . . 1 . 15 Rewire 58 | . . . . . . 17 . . . . 39 . 2 Trap 2 | . . . . . . . . . . . . 1 1 Miscellaneous 4 | . . . . . . . . . . . 4 . . Route ------- -11/Scrapyard -10/Materials (discovered 2 exits: *Mat / [*Min]) -10/Mines -9/Materials (discovered 2 exits: [*Mat] / [*Min]) -9/Mines (discovered 2 exits: [*Mat] / *Zio) -7/Zion -6/Proximity Caves -6/Factory (discovered 2 exits: *Fac / Ext) -5/Factory -5/Upper Caves -5/Upper Caves -5/Warlord -4/Proximity Caves -4/Factory History --------- Turn | Location | Event 12 | -11/Scrapyard | Discovered new exit (range 16) 118 | -11/Scrapyard | Entered Materials 301 | -10/Materials | Build established: Mutant 313 | -10/Materials | Discovered new exit (range 10) 355 | -10/Materials | Discovered new exit (range 4) 622 | -10/Materials | Entered Mines 667 | -10/Mines | Discovered new exit (range 14) 758 | -10/Mines | Assembled infested the area 763 | -10/Mines | Assisted by a Guerilla fighting off Assembled 810 | -10/Mines | Entered Materials 810 | -9/Materials | Evolved 2 slots: Power x1, Utility x1 1331 | -9/Materials | Discovered new exit (range 11) 1622 | -9/Materials | Discovered new exit (range 5) 1627 | -9/Materials | Entered Mines 1632 | -9/Mines | Assisted by bots powering up and referring to "LRC-V3" 1650 | -9/Mines | Discovered new exit (range 7) 1693 | -9/Mines | Learned 8 Materials zone layouts 1759 | -9/Mines | A Derelict revealed a hidden shortcut to a safe place 1791 | -9/Mines | Entered Zion 1791 | -7/Zion | Accompanied by 5 allies 1841 | -7/Zion | Led the pair of lost Derelicts to a safe place 2212 | -7/Zion | Gained Derelict followers 2296 | -7/Zion | Build established: Scavenger-Mutant 2370 | -7/Zion | Found GAL Module 2630 | -7/Zion | Given the Hacking Drone Bay 2630 | -7/Zion | Found Prototype Device 2630 | -7/Zion | Identified Hacking Drone Bay 2643 | -7/Zion | Discovered new exit (range 13) 2728 | -7/Zion | Entered Proximity Caves 2728 | -6/Proximity Caves | Accompanied by 7 allies 2768 | -6/Proximity Caves | Learned Factory non-interactive machine intel 2795 | -6/Proximity Caves | Lost 4 allies 2919 | -6/Proximity Caves | Build established: Mutant 3335 | -6/Proximity Caves | Discovered new exit (range 7) 3417 | -6/Proximity Caves | Build established: Derelict-Mutant 3648 | -6/Proximity Caves | Entered Factory 3648 | -6/Factory | Accompanied by 4 allies 3648 | -6/Factory | Evolved 6 slots: Propulsion x2, Utility x3, Weapon x1 3649 | -6/Factory | Identified exit to Extension 3650 | -6/Factory | Loaded intel: 192 non-interactive machine locations 3657 | -6/Factory | Discovered new exit (range 11) 3808 | -6/Factory | Lost 3 allies 3950 | -6/Factory | Build established: Scavenger-Tank 3951 | -6/Factory | Entered another Factory area 3951 | -5/Factory | Accompanied by 1 ally 3951 | -5/Factory | Evolved 2 slots: Utility x2 4054 | -5/Factory | Lost 4 parts (2n1u1w) 4172 | -5/Factory | Discovered new exit (range 9) 4173 | -5/Factory | Lost 8 parts (1p1n4u2w) 4185 | -5/Factory | Entered Upper Caves 4566 | -5/Upper Caves | Build established: Derelict-Gladiator 4674 | -5/Upper Caves | Lost 3 parts (1n2u) 4773 | -5/Upper Caves | Attracted the attention of an 0b10 checkpoint 4833 | -5/Upper Caves | Lost 6 parts (2p2n1u1w) 5064 | -5/Upper Caves | Build established: Scavenger-Gladiator 5092 | -5/Upper Caves | Encountered a Warlord checkpoint 5379 | -5/Upper Caves | Discovered new exit (range 6) 5387 | -5/Upper Caves | Entered another Upper Caves area 5499 | -5/Upper Caves | Learned Factory terminal intel 5543 | -5/Upper Caves | Attracted the attention of an 0b10 checkpoint 5603 | -5/Upper Caves | Lost 3 parts (1p2n) 5919 | -5/Upper Caves | Discovered new exit (range 13) 5968 | -5/Upper Caves | Entered Warlord 6416 | -5/Warlord | Visited the Vortex Lab 6427 | -5/Warlord | Warlord's base attacked by MAIN.C 6435 | -5/Warlord | Found Prototype Piercing Weapon 6435 | -5/Warlord | Identified Vortex Lance 6439 | -5/Warlord | Found Vortex Lance 6453 | -5/Warlord | Found Prototype Energy Gun 6454 | -5/Warlord | Identified Vortex Shotgun 6458 | -5/Warlord | Found Vortex Shotgun 6736 | -5/Warlord | Build established: Commander-Gladiator 6777 | -5/Warlord | Warlord forces counterattacked 6964 | -5/Warlord | Met Warlord 7020 | -5/Warlord | Found Prototype Device 7020 | -5/Warlord | Identified Minesniffer Drone Bay 7094 | -5/Warlord | Spotted Executioner 7102 | -5/Warlord | Warlord base infiltrated, sounded retreat 7103 | -5/Warlord | Spotted Executioner 7170 | -5/Warlord | Lost 14 allies 7193 | -5/Warlord | Spotted Striker 7198 | -5/Warlord | Crushed by falling debris 7225 | -5/Warlord | Lost 3 allies 7308 | -5/Warlord | Lost 9 allies 7328 | -5/Warlord | Spotted Executioner 7344 | -5/Warlord | Discovered new exit (range 12) 7363 | -5/Warlord | Entered Proximity Caves 7363 | -4/Proximity Caves | Accompanied by 8 allies 7365 | -4/Proximity Caves | Spotter reported a threat 7367 | -4/Proximity Caves | Spotter reported a threat 7384 | -4/Proximity Caves | Lost 3 allies 7434 | -4/Proximity Caves | Spotted B-86 Titan 7453 | -4/Proximity Caves | Learned Research terminal intel 7483 | -4/Proximity Caves | Attracted the attention of an 0b10 checkpoint 7519 | -4/Proximity Caves | Core integrity fell below 50% 7552 | -4/Proximity Caves | Lost 3 parts (2p1w) 7642 | -4/Proximity Caves | Received a Behemoth hack from an annoying Tinkerer 7697 | -4/Proximity Caves | Build established: Scavenger-Mutant 7825 | -4/Proximity Caves | Spotter reported a threat 7838 | -4/Proximity Caves | Learned location of Testing (-2) 8005 | -4/Proximity Caves | Spotter reported a threat 8057 | -4/Proximity Caves | Spotter reported a threat 8239 | -4/Proximity Caves | Spotter reported a threat 8425 | -4/Proximity Caves | Spotter reported a threat 8586 | -4/Proximity Caves | Discovered new exit (range 31) 8651 | -4/Proximity Caves | Entered Factory 8651 | -4/Factory | Accompanied by 3 allies 8651 | -4/Factory | Evolved 2 slots: Power x1, Propulsion x1 8652 | -4/Factory | Loaded intel: 26 terminal locations 8771 | -4/Factory | Lost 4 parts (2n2u) 8941 | -4/Factory | Search patrols dispatched 9061 | -4/Factory | Lost 14 parts (2p3n6u3w) 9085 | -4/Factory | Lost 8 allies 9121 | -4/Factory | Lost 6 parts (4n2u) 9151 | -4/Factory | Search patrols dispatched 9401 | -4/Factory | Search patrols dispatched 9471 | -4/Factory | Lost 3 parts (1p2n) 9490 | -4/Factory | Core integrity fell below 50% 9597 | -4/Factory | Core integrity fell below 20% 9622 | -4/Factory | System corruption reached 10% 9651 | -4/Factory | Search patrols dispatched 9659 | -4/Factory | Lost 21 parts (3p10n3u5w) 9722 | -4/Factory | Destroyed by Y-64 Sentinel with Wave Gun Last Messages --------------- 09674_ Repair Station x3 09678_ W-44 Eye distress signal jammed. 09683_ >> Machine Analyzer network decryption results: 09683_ Recycling Unit x1 09691_ Acquired 89 matter. 09695_ Triggered Gamma Bomb Trap. 09695_ A bubble of electromagnetic force engulfs the area. 09695_ Imp. Transmission Jammer destroyed. 09695_ Gamma Bomb Trap short circuited. 09695_ A bubble of electromagnetic force engulfs the area. 09695_ Chain reaction triggered in Lgt. Neutrino Core. 09700_ U-05 Engineer lays Concrete. 09700_ >> Machine Analyzer network decryption results: 09700_ Recycling Unit x3 09701_ ,L5